bitfinex-derivatives/quotes_ETHF0:USTF0_20241026
["timestamp","ask_amount","ask_price","bid_price","bid_amount"]
[1729928607765,0.4407,2467.6,2467.5,1.31391674]
[1729928607980,0.4407,2467.6,2467.5,1.75001674]
[1729928610671,0.4407,2467.6,2467.5,2.18311674]
[1729928611274,0.4407,2467.6,2467.5,2.59821674]
[1729928613979,1.75461674,2467.6,2467.5,2.59821674]
[1729928616274,0.4407,2467.6,2467.5,2.59821674]
[1729928616585,1.75461674,2467.6,2467.5,2.59821674]
[1729928626786,0.4407,2467.6,2467.5,2.59821674]
[1729928627179,1.31391674,2467.8,2467.5,6.65101674]
[1729928627387,1.31391674,2467.7,2467.5,2.59821674]
[1729928627586,1.76361674,2467.7,2467.5,2.59821674]
[1729928632589,2.16927674,2467.7,2467.5,2.59821674]
[1729928632989,1.76361674,2467.7,2467.5,2.59821674]
[1729928640594,1.76361674,2467.7,2467.5,3.00390674]
[1729928640992,1.76361674,2467.7,2467.5,2.59821674]
[1729928641500,2.646829,2468.2,2467.9,0.40562]
[1729928641707,0.4325,2468.2,2468.0,2.16611674]
[1729928641898,0.4325,2468.2,2468.0,2.60771674]
[1729928642204,2.15199674,2468.2,2468.0,2.60771674]
[1729928642393,1.31391674,2468.1,2468.0,1.2938]
[1729928645399,1.71950674,2468.1,2467.9,4.52171674]
[1729928645693,1.71950674,2468.1,2467.4,1.66504359]
[1729928645694,0.40566,2467.7,2467.4,3.2078]
[1729928645892,1.31391674,2467.5,2467.4,3.2078]
[1729928646199,1.31391674,2467.5,2467.3,0.4396]
[1729928646500,1.31391674,2467.5,2467.3,1.75351674]
[1729928646809,5.36671674,2467.4,2467.1,3.2078]
[1729928647003,0.40576,2467.1,2466.8,3.2078]
[1729928647204,1.31391674,2466.9,2466.8,3.2078]
[1729928647503,1.71970674,2466.9,2466.8,3.2078]
[1729928647800,1.31391674,2466.9,2466.7,2.17341674]
[1729928648701,2.20481674,2467.0,2466.8,1.31391674]
[1729928648890,2.20481674,2467.0,2466.8,3.2078]
[1729928649096,2.20481674,2467.0,2466.8,3.6277]
[1729928649097,1.31391674,2466.9,2466.8,3.6277]
[1729928649708,2.20481674,2467.0,2466.8,4.94161674]
[1729928650205,1.31391674,2466.9,2466.8,3.6277]
[1729928651497,2.20481674,2467.0,2466.8,4.94161674]
[1729928652499,1.31391674,2466.9,2466.8,3.2078]
[1729928655795,1.31391674,2466.9,2466.7,1.31391674]
[1729928656001,1.31391674,2466.9,2466.8,3.2078]
[1729928658805,1.31391674,2466.9,2466.7,1.31391674]
[1729928659708,1.31391674,2466.9,2466.8,3.2078]
[1729928662009,1.31391674,2466.9,2466.8,3.6508]
[1729928662209,1.31391674,2466.9,2466.8,0.443]
[1729928662408,1.31391674,2466.9,2466.8,3.6508]
[1729928662803,0.867,2467.3,2466.8,9.42411674]
[1729928663114,1.31391674,2467.1,2466.9,0.4278]
[1729928663314,1.31391674,2467.1,2466.9,0.83359]
[1729928664211,1.31391674,2467.0,2466.9,0.4278]
[1729928665317,1.31391674,2467.0,2466.9,0.83359]
[1729928666217,0.4268,2467.3,2467.0,0.40576]
[1729928666515,1.31391674,2467.1,2467.0,0.40576]
[1729928667218,1.31391674,2467.1,2467.0,3.61356]
[1729928668112,0.4268,2467.3,2467.1,0.40574]
[1729928668306,1.74071674,2467.3,2467.2,0.4285]
[1729928669819,1.31391674,2467.3,2467.2,0.4285]
[1729928670118,1.31391674,2467.3,2467.0,4.52171674]
[1729928670119,1.75531674,2467.3,2467.0,3.2078]
[1729928670324,1.31391674,2467.1,2467.0,3.2078]
[1729928674023,1.31391674,2467.1,2467.0,3.61357]
[1729928674219,1.31391674,2467.1,2467.0,3.2078]
[1729928674422,0.4414,2467.3,2467.0,3.2078]
[1729928674621,1.31391674,2467.2,2467.0,4.92747674]
[1729928674821,1.31391674,2467.2,2467.1,0.4478]
[1729928675618,1.31391674,2467.2,2467.1,3.6556]
[1729928678025,1.31391674,2467.2,2467.1,0.4478]
[1729928678323,1.31391674,2467.2,2467.1,3.6556]
[1729928680820,1.31391674,2467.2,2467.1,3.2078]
[1729928681017,2.15395674,2467.2,2467.1,3.2078]
[1729928681623,2.15395674,2467.2,2466.9,1.2833]
[1729928681624,6.20755674,2467.2,2466.9,0.4244]
[1729928681822,1.31391674,2467.0,2466.9,0.4244]
[1729928682222,1.73561674,2467.0,2466.9,0.4244]
[1729928682921,1.31391674,2467.1,2466.9,2.14409674]
[1729928686631,1.31391674,2467.1,2467.0,1.71968674]
[1729928686833,1.31391674,2467.1,2467.0,1.31391674]
[1729928687133,1.31391674,2467.1,2466.9,2.14409674]
[1729928688241,1.31391674,2467.1,2467.0,3.2078]
[1729928689335,0.4414,2467.3,2467.0,4.52171674]
[1729928689533,0.4414,2467.3,2467.2,1.31391674]
[1729928690039,0.4414,2467.3,2467.2,1.76321674]
[1729928690238,1.75531674,2467.3,2467.2,0.4493]
[1729928692143,2.646829,2467.5,2467.4,0.40571]
[1729928692436,1.31391674,2467.6,2467.4,4.92742674]
[1729928692644,1.31391674,2467.6,2467.5,1.30729]
[1729928693239,1.31391674,2467.6,2467.5,0.9016]
[1729928693845,1.31391674,2467.6,2467.5,1.30729]
[1729928694046,1.31391674,2467.6,2467.5,0.9016]
[1729928697048,1.74631674,2467.7,2467.5,2.62120674]
[1729928698252,0.4324,2467.7,2467.6,1.31391674]
[1729928699336,0.4324,2467.7,2467.6,1.71958674]
[1729928700443,1.76081674,2467.9,2467.6,1.71958674]
[1729928700748,2.20521674,2467.9,2467.8,4.52171674]
[1729928701641,2.20521674,2467.9,2467.8,3.2078]
[1729928707553,2.20521674,2467.9,2467.7,1.31391674]
[1729928707752,2.20521674,2467.9,2467.7,4.52171674]
[1729928710055,2.20521674,2467.9,2467.7,1.31391674]
[1729928710251,2.20521674,2467.9,2467.7,4.52171674]
[1729928714748,2.20521674,2467.9,2467.7,1.31391674]
[1729928714957,2.20521674,2467.9,2467.7,4.52171674]
[1729928715455,2.20521674,2467.9,2467.7,1.31391674]
[1729928715654,2.20521674,2467.9,2467.7,4.52171674]
[1729928716557,1.31391674,2467.8,2467.7,4.52171674]
[1729928716757,1.31391674,2467.8,2467.7,1.31391674]
[1729928716957,1.31391674,2467.8,2467.7,4.52171674]
[1729928717351,2.20521674,2467.9,2467.7,4.52171674]
[1729928719257,2.20521674,2467.9,2467.7,1.31391674]
[1729928719854,2.20521674,2467.9,2467.7,4.52171674]
[1729928720860,2.20521674,2467.9,2467.7,1.31391674]
[1729928721461,2.20521674,2467.9,2467.7,4.52171674]
[1729928721648,2.20521674,2467.9,2467.7,1.31391674]
[1729928721859,2.20521674,2467.9,2467.7,4.52171674]
[1729928725164,2.20521674,2467.9,2467.7,1.31391674]
[1729928725360,2.20521674,2467.9,2467.7,4.52171674]
[1729928726061,2.20521674,2467.9,2467.7,1.31391674]
[1729928726457,2.20521674,2467.9,2467.7,4.52171674]
[1729928728054,2.20521674,2467.9,2467.7,1.31391674]
[1729928728255,2.20521674,2467.9,2467.7,4.52171674]
[1729928728455,2.20521674,2467.9,2467.8,0.4248]
[1729928733671,4.85204574,2467.9,2467.8,0.4248]
[1729928734567,3.538129,2467.9,2467.8,0.4248]
[1729928736566,0.8913,2467.9,2467.8,0.4248]
[1729928740169,0.4444,2467.9,2467.8,0.4248]
[1729928742774,2.64809415,2468.0,2467.9,0.40562]
[1729928742976,2.64809415,2468.0,2467.9,2.17173674]
[1729928743277,2.64809415,2468.0,2467.9,6.22373674]
[1729928743471,2.64809415,2468.2,2468.1,0.40559]
[1729928743667,2.64809415,2468.2,2468.1,4.92730674]
[1729928743867,2.64809415,2468.3,2468.1,4.52171674]
[1729928744075,2.64809415,2468.3,2468.2,2.14739674]
[1729928745373,2.64809415,2468.3,2468.2,1.74181674]
[1729928745580,1.76501674,2468.5,2468.2,1.74181674]
[1729928745581,2.64809415,2468.4,2468.2,1.74181674]
[1729928745774,2.64809415,2468.4,2468.3,1.75691674]
[1729928746776,2.64809415,2468.4,2468.3,4.96471674]
[1729928747071,3.96201089,2468.4,2468.3,4.96471674]
[1729928747472,3.96201089,2468.4,2468.3,3.2078]
[1729928747672,9.88683348,2468.4,2467.7,3.6497]
[1729928747874,1.31391674,2467.8,2467.7,3.6497]
[1729928748278,1.76441674,2467.8,2467.7,3.6497]
[1729928748578,1.76441674,2467.8,2467.7,4.96361674]
[1729928751177,1.76441674,2467.8,2467.7,1.75581674]
[1729928754682,1.76441674,2467.8,2467.7,1.31391674]
[1729928757387,1.76441674,2467.8,2467.7,4.52171674]
[1729928760090,2.17005674,2467.8,2467.7,3.2078]
[1729928760286,4.82764923,2467.8,2467.7,3.2078]
[1729928761391,3.51373249,2467.8,2467.7,3.2078]
[1729928762096,3.09493249,2467.8,2467.7,4.52171674]
[1729928762294,0.4505,2467.8,2467.7,4.52171674]
[1729928769000,0.85614,2467.8,2467.7,4.52171674]
[1729928769895,0.4505,2467.8,2467.7,4.52171674]
[1729928773397,0.4505,2467.8,2467.7,1.31391674]
[1729928774204,1.76441674,2467.8,2467.6,3.2078]
[1729928774412,1.31391674,2467.7,2467.5,1.74491674]
[1729928774703,0.40567,2467.6,2467.5,1.74491674]
[1729928775001,1.71958674,2467.6,2467.3,4.0671]
[1729928775206,0.8269,2467.5,2467.4,1.75021674]
[1729928775699,0.4212,2467.5,2467.4,1.75021674]
[1729928775903,0.82685,2467.8,2467.4,2.15592674]
[1729928776102,2.14076674,2467.8,2467.7,1.31391674]
[1729928776401,0.4212,2467.8,2467.7,1.31391674]
[1729928776706,0.4364,2467.9,2467.7,1.31391674]
[1729928776903,0.4364,2467.9,2467.8,2.16091674]
[1729928777208,1.6928,2468.1,2467.8,2.16091674]
[1729928777405,0.8268,2468.1,2468.0,1.31391674]
[1729928780504,2.14071674,2468.1,2468.0,1.31391674]
[1729928784005,0.866,2468.2,2468.0,1.31391674]
[1729928784207,2.17081674,2468.3,2468.1,1.31391674]
[1729928784208,1.26247,2468.3,2468.1,1.31391674]
[1729928784415,2.57638674,2468.3,2468.2,0.4235]
[1729928784705,0.40554,2468.5,2468.2,1.73741674]
[1729928784907,0.83054,2468.5,2468.3,1.31391674]
[1729928785107,1.31391674,2468.4,2468.3,1.31391674]
[1729928786306,0.83054,2468.5,2468.3,1.31391674]
[1729928786307,2.14445674,2468.5,2468.3,1.31391674]
[1729928786607,2.14445674,2468.5,2467.7,1.31391674]
[1729928786608,6.67903348,2468.4,2467.7,1.31391674]
[1729928786908,1.71955674,2467.8,2467.6,2.62561674]
[1729928787106,0.40564,2467.8,2467.7,1.31391674]
[1729928787606,1.31391674,2467.8,2467.6,1.3117]
[1729928787805,1.71956674,2467.8,2467.6,1.31391674]
[1729928788411,0.40566,2467.7,2467.6,1.31391674]
[1729928791403,1.71956674,2467.8,2467.6,1.31391674]
[1729928791605,0.40565,2467.8,2467.6,1.31391674]
[1729928791807,1.31391674,2467.9,2467.6,1.31391674]
[1729928792111,0.40566,2467.7,2467.6,1.31391674]
[1729928793800,0.40565,2467.8,2467.6,1.31391674]
[1729928796211,0.40565,2467.8,2467.7,0.8715]
[1729928796613,0.40565,2467.8,2467.7,2.18541674]
[1729928797415,0.40564,2467.8,2467.7,2.18541674]
[1729928799210,0.40564,2467.8,2467.7,2.61411674]
[1729928807720,2.13574674,2467.9,2467.7,2.61411674]
[1729928808021,0.40564,2467.8,2467.7,2.61411674]
[1729928810020,1.73011674,2467.9,2467.7,2.61411674]
[1729928810418,3.5907948,2468.1,2467.8,1.31391674]
[1729928810621,3.5907948,2468.1,2467.7,1.3002]
[1729928810622,3.1761948,2468.3,2468.0,1.31391674]
[1729928810921,0.40557,2468.3,2468.2,1.31391674]
[1729928811517,1.71948674,2468.3,2468.2,1.31391674]
[1729928812322,0.40557,2468.3,2468.2,1.31391674]
[1729928812530,1.71948674,2468.3,2468.2,1.31391674]
[1729928813527,1.71948674,2468.3,2468.1,2.60401674]
[1729928817027,0.40555,2468.4,2468.2,1.31391674]
[1729928817225,1.71946674,2468.4,2468.3,1.31391674]
[1729928818927,4.5127,2468.5,2468.3,1.31391674]
[1729928818928,0.40553,2468.5,2468.3,1.31391674]
[1729928819133,1.71944674,2468.5,2468.4,1.31391674]
[1729928820640,1.31391674,2468.5,2468.4,1.31391674]
[1729928820834,0.40552,2468.6,2468.4,1.31391674]
[1729928821037,0.40552,2468.6,2468.5,2.19421674]
[1729928821239,0.40551,2468.6,2468.5,2.19421674]
[1729928821542,4.47829,2468.8,2468.5,2.19421674]
[1729928821738,4.47829,2468.8,2468.7,1.31391674]
[1729928822044,3.61329,2468.8,2468.7,1.31391674]
[1729928822235,3.2078,2468.8,2468.7,1.31391674]
[1729928822537,1.71939674,2468.9,2468.7,1.31391674]
[1729928824141,0.40548,2468.9,2468.8,1.31391674]
[1729928824336,1.71939674,2468.9,2468.7,1.31391674]
[1729928826739,1.31391674,2468.9,2468.7,1.31391674]
[1729928828247,1.71937674,2468.9,2468.7,1.31391674]
[1729928829139,0.40548,2468.8,2468.7,1.31391674]
[1729928829339,1.31391674,2468.8,2468.6,3.6502]
[1729928829535,0.40549,2468.7,2468.6,1.75631674]
[1729928829947,1.31391674,2468.8,2468.6,1.75631674]
[1729928830137,1.31391674,2468.8,2468.7,1.31391674]
[1729928830937,1.71938674,2468.9,2468.7,1.31391674]
[1729928832153,1.71939674,2468.8,2468.6,1.75631674]
[1729928833350,1.31391674,2468.8,2468.6,1.75631674]
[1729928834842,1.31391674,2468.8,2468.7,1.31391674]
[1729928835047,1.31391674,2468.9,2468.7,1.31391674]
[1729928837251,1.71938674,2468.9,2468.7,1.31391674]
[1729928837550,1.31391674,2468.8,2468.6,1.75631674]
[1729928839043,1.31391674,2468.8,2468.7,1.31391674]
[1729928839245,1.31391674,2468.9,2468.7,1.31391674]
[1729928841046,0.82336,2469.0,2468.6,0.4424]
[1729928841047,2.13727674,2469.0,2468.8,1.31391674]
[1729928841244,2.13727674,2469.0,2468.9,0.4103]
[1729928842340,2.13727674,2469.0,2468.9,1.72421674]
[1729928842341,0.4179,2469.0,2468.9,1.72421674]
[1729928842541,1.71934674,2469.2,2468.9,1.72421674]
[1729928842746,2.13794674,2469.2,2469.0,2.14641674]
[1729928845649,2.13794674,2469.2,2469.1,1.31391674]
[1729928848454,0.4186,2469.2,2469.1,1.31391674]
[1729928848652,0.82401,2469.2,2469.1,1.31391674]
[1729928848850,2.13792674,2469.2,2469.1,4.52171674]
[1729928850563,1.73251674,2469.2,2469.1,4.52171674]
[1729928850753,0.4186,2469.2,2469.1,4.52171674]
[1729928851957,0.46325176,2469.2,2469.1,4.52171674]
[1729928852352,0.46325176,2469.2,2469.1,1.31391674]
[1729928852863,0.86866176,2469.2,2469.1,1.31391674]
[1729928854364,0.46325176,2469.2,2469.1,1.31391674]
[1729928856754,0.86866176,2469.2,2469.1,1.31391674]
[1729928856960,0.47410199,2469.2,2469.1,1.31391674]
[1729928857356,0.87951199,2469.2,2469.1,1.31391674]
[1729928861657,0.47410199,2469.2,2469.1,1.31391674]
[1729928861866,0.87951199,2469.2,2469.1,1.31391674]
[1729928865562,0.05550199,2469.2,2469.1,1.31391674]
[1729928873276,0.46091199,2469.2,2469.1,1.31391674]
[1729928873775,0.05550199,2469.2,2469.1,1.31391674]
[1729928874171,0.46091199,2469.2,2469.1,1.31391674]
[1729928875172,0.05550199,2469.2,2469.1,1.31391674]
[1729928875684,0.46091199,2469.2,2469.1,1.31391674]
[1729928876269,0.05550199,2469.2,2469.1,1.31391674]
[1729928878785,0.46091199,2469.2,2469.1,1.31391674]
[1729928879081,0.05550199,2469.2,2469.1,1.31391674]
[1729928879277,0.46091199,2469.2,2469.1,1.31391674]
[1729928879983,0.05550199,2469.2,2469.1,1.31391674]
[1729928880980,0.46091199,2469.2,2469.1,1.31391674]
[1729928881582,0.40544,2469.0,2468.9,3.2078]
[1729928881787,0.40544,2469.0,2468.5,1.0643399]
[1729928881788,0.40547,2468.9,2468.7,1.31391674]
[1729928882086,0.50310199,2468.8,2468.6,4.5002]
[1729928882689,0.50310199,2468.8,2468.6,4.90571]
[1729928882988,0.4476,2468.8,2468.6,4.90571]
[1729928883481,0.4476,2468.8,2468.6,1.69791]
[1729928883784,0.4476,2468.8,2468.7,3.2078]
[1729928883981,0.4476,2468.8,2468.7,1.31391674]
[1729928884187,0.4476,2468.8,2468.7,4.52171674]
[1729928885687,0.4476,2468.8,2468.7,1.31391674]
[1729928886083,0.85308,2468.8,2468.7,1.31391674]
[1729928886389,0.4476,2468.8,2468.7,1.31391674]
[1729928887682,0.85308,2468.8,2468.7,1.31391674]
[1729928888195,0.4476,2468.8,2468.7,1.31391674]
[1729928889890,0.85308,2468.8,2468.7,1.31391674]
[1729928890086,0.4476,2468.8,2468.7,1.31391674]
[1729928890992,0.85308,2468.8,2468.7,1.31391674]
[1729928891987,0.4476,2468.8,2468.7,1.31391674]
[1729928893890,0.4476,2468.8,2468.6,4.08]
[1729928894091,0.4322,2468.7,2468.6,1.31391674]
[1729928894400,1.24541,2468.7,2468.6,1.31391674]
[1729928903203,2.55932674,2468.7,2468.6,1.31391674]
[1729928907596,1.24541,2468.7,2468.6,1.31391674]
[1729928911508,2.55932674,2468.7,2468.6,1.31391674]
[1729928911697,0.40551,2468.6,2468.5,1.31391674]
[1729928913211,0.4476,2468.8,2468.5,1.31391674]
[1729928913402,0.85308,2468.8,2468.7,1.31391674]
[1729928920808,0.85308,2468.8,2468.7,1.73401674]
[1729928921014,0.85308,2468.8,2468.7,2.16311674]
[1729928924017,2.16699674,2468.8,2468.7,0.8492]
[1729928931417,0.85308,2468.8,2468.7,0.8492]
[1729928936017,3.17326471,2468.9,2468.7,0.8492]
[1729928936327,3.17326471,2468.9,2468.8,1.31391674]
[1729928936518,3.17326471,2469.1,2468.8,1.71939674]
[1729928936720,4.89198471,2469.2,2469.0,1.31391674]
[1729928936925,6.20590145,2469.2,2469.1,0.8392]
[1729928937127,6.20590145,2469.2,2469.1,1.2897]
[1729928937325,5.34190145,2469.2,2469.1,1.2897]
[1729928937525,3.57865471,2469.3,2469.1,2.60361674]
[1729928937832,1.31391674,2469.3,2469.2,1.31391674]
[1729928938422,2.62721674,2469.4,2469.2,1.31391674]
[1729928938820,3.03260674,2469.4,2469.2,1.31391674]
[1729928939723,1.31391674,2469.3,2469.2,1.31391674]
[1729928940526,1.71930674,2469.3,2469.2,1.31391674]
[1729928941528,1.71930674,2469.3,2469.1,2.60361674]
[1729928942030,1.31391674,2469.2,2469.1,2.60361674]
[1729928943328,0.40539,2469.3,2469.1,2.60361674]
[1729928943630,3.03259674,2469.4,2469.1,2.60361674]
[1729928944021,3.03259674,2469.4,2469.2,1.31391674]
[1729928944221,0.4493,2469.4,2469.3,1.31391674]
[1729928947532,0.85468,2469.4,2469.3,1.31391674]
[1729928947733,2.16859674,2469.4,2469.3,1.31391674]
[1729928952033,0.85468,2469.4,2469.3,1.31391674]
[1729928952231,0.4493,2469.4,2469.3,1.31391674]
[1729928952429,0.85468,2469.4,2469.3,1.31391674]
[1729928952737,0.4493,2469.4,2469.3,1.31391674]
[1729928953829,0.85468,2469.4,2469.3,1.31391674]
[1729928959138,0.4493,2469.4,2469.3,1.31391674]
[1729928959742,0.85468,2469.4,2469.3,1.31391674]
[1729928960428,0.4493,2469.4,2469.3,1.31391674]
[1729928961738,0.85468,2469.4,2469.3,1.31391674]
[1729928964837,5.81281674,2469.4,2468.7,3.2078]
[1729928965039,5.81281674,2469.4,2468.6,0.8842]
[1729928965040,1.31391674,2468.9,2468.6,0.8842]
[1729928965335,3.2078,2469.2,2468.5,1.31391674]
[1729928965336,0.40549,2468.7,2468.5,1.31391674]
[1729928965544,0.40551,2468.6,2468.5,1.31391674]
[1729928966042,2.55121674,2468.8,2468.5,1.31391674]
[1729928966043,0.4055,2468.7,2468.5,1.31391674]
[1729928966236,0.4055,2468.7,2468.6,1.31391674]
[1729928966437,1.64278,2468.8,2468.6,1.31391674]
[1729928966632,1.64278,2468.8,2468.7,1.31391674]
[1729928970734,1.2373,2468.8,2468.7,1.31391674]
[1729928971046,0.8303,2468.8,2468.7,1.31391674]
[1729928971837,1.23578,2468.8,2468.7,1.31391674]
[1729928974949,0.8303,2468.8,2468.7,1.31391674]
[1729928975344,2.10864,2469.1,2468.7,1.31391674]
[1729928975547,1.2976,2469.2,2469.0,1.31391674]
[1729928975751,1.70301,2469.2,2469.1,1.31391674]
[1729928978454,1.70301,2469.2,2469.0,1.31391674]
[1729928979745,0.4346,2469.2,2469.1,1.31391674]
[1729928980744,0.863,2469.4,2469.1,1.31391674]
[1729928980949,0.863,2469.4,2468.9,1.31391674]
[1729928980950,2.17691674,2469.4,2469.3,1.31391674]
[1729928981950,2.58229674,2469.4,2469.3,1.31391674]
[1729928982153,3.03329674,2469.4,2469.3,1.31391674]
[1729928982451,2.62791674,2469.4,2469.3,1.31391674]
[1729928982657,0.40539,2469.3,2469.0,1.73571674]
[1729928982951,1.74631674,2469.2,2469.0,1.73571674]
[1729928983653,2.15172674,2469.2,2469.0,1.73571674]
[1729928988356,1.74631674,2469.2,2469.0,1.73571674]
[1729928988560,0.40543,2469.1,2469.0,1.73571674]
[1729928989746,0.40543,2469.1,2469.0,1.31391674]
[1729928990054,0.40544,2469.0,2468.9,0.4211]
[1729928990258,1.71935674,2469.0,2468.9,0.4211]
[1729928993062,0.40544,2469.0,2468.9,1.73501674]
[1729928993449,1.71935674,2469.0,2468.9,0.4211]
[1729928993654,1.71935674,2469.0,2468.8,4.52171674]
[1729928993857,0.84176,2468.9,2468.8,4.52171674]
[1729928994055,0.4363,2468.9,2468.8,4.52171674]
[1729928997865,0.40544,2469.1,2468.8,4.52171674]
[1729928998066,0.40544,2469.1,2468.9,1.31391674]
[1729928998565,0.40544,2469.1,2469.0,0.4404]
[1729928998762,0.4479,2469.2,2469.0,1.75431674]
[1729928999065,2.58228674,2469.5,2469.1,2.18711674]
[1729928999263,1.31391674,2469.2,2468.9,3.2078]
[1729928999468,1.31391674,2469.0,2468.7,1.31391674]
[1729928999666,0.40546,2468.9,2468.7,1.31391674]
[1729929001165,2.13246674,2469.0,2468.7,1.31391674]
[1729929001364,2.13246674,2469.0,2468.8,1.31391674]
[1729929001969,0.40546,2468.9,2468.8,1.31391674]
[1729929002271,0.40549,2468.8,2468.6,1.3136]
[1729929002462,0.82639,2468.8,2468.6,2.62751674]
[1729929002866,0.82639,2468.8,2468.7,1.31391674]
[1729929003269,0.4209,2468.8,2468.7,1.31391674]
[1729929003474,1.71938674,2468.9,2468.7,1.31391674]
[1729929003674,1.71938674,2468.9,2468.6,1.3136]
[1729929003979,1.71938674,2468.9,2468.8,1.31391674]
[1729929004581,0.40547,2468.9,2468.8,1.31391674]
[1729929005677,0.40547,2468.9,2468.6,1.3136]
[1729929005678,0.40548,2468.8,2468.7,1.31391674]
[1729929005882,1.71938674,2468.9,2468.7,1.31391674]
[1729929021896,1.31391674,2468.8,2468.6,1.3136]
[1729929022084,1.31391674,2468.7,2468.2,1.06389777]
[1729929022290,1.31391674,2468.7,2468.3,0.4113]
[1729929022291,0.40552,2468.6,2468.3,0.4113]
[1729929022590,1.31391674,2468.4,2468.3,0.4113]
[1729929022786,1.31391674,2468.4,2468.2,3.2078]
[1729929023097,7.6677,2468.3,2467.9,3.2078]
[1729929023290,0.40561,2468.0,2467.9,3.2078]
[1729929023493,2.58252674,2468.0,2467.9,3.2078]
[1729929024187,0.863,2468.0,2467.9,4.52171674]
[1729929024399,0.81328,2468.2,2467.9,4.52171674]
[1729929024400,2.17691674,2468.1,2467.9,4.52171674]
[1729929024897,2.17691674,2468.1,2468.0,0.4121]
[1729929025288,2.58250674,2468.1,2468.0,0.4121]
[1729929026297,0.40561,2468.0,2467.9,3.2078]
[1729929026494,1.71952674,2468.0,2467.9,3.2078]
[1729929027596,1.71952674,2468.0,2467.7,1.31391674]
[1729929027892,1.76321674,2467.9,2467.7,1.31391674]
[1729929028089,1.76321674,2467.9,2467.7,4.52171674]
[1729929028601,0.4493,2467.9,2467.7,3.2078]
[1729929028790,1.31391674,2468.0,2467.8,1.31391674]
[1729929028996,1.31391674,2468.0,2467.9,0.4219]
[1729929030305,0.40563,2467.9,2467.7,4.52171674]
[1729929030505,1.31391674,2467.9,2467.7,4.52171674]
[1729929030903,1.31391674,2467.9,2467.8,1.31391674]
[1729929031697,1.31391674,2468.0,2467.8,1.31391674]
[1729929031898,1.31391674,2468.0,2467.9,1.31391674]
[1729929032596,1.2676,2468.1,2467.9,1.31391674]
[1729929032799,3.6181,2468.6,2468.0,1.72581674]
[1729929033005,0.862,2468.2,2468.1,0.4301]
[1729929033204,0.862,2468.2,2468.1,2.17621674]
[1729929033908,2.58146674,2468.4,2468.1,2.17621674]
[1729929034704,3.2078,2468.9,2468.1,2.17621674]
[1729929034705,3.2078,2468.9,2468.3,1.31391674]
[1729929034902,0.4055,2468.7,2468.4,0.4132]
[1729929035103,0.4055,2468.7,2468.6,1.31391674]
[1729929035297,1.71941674,2468.7,2468.6,1.31391674]
[1729929036203,0.40548,2468.8,2468.6,1.31391674]
[1729929036409,0.40548,2468.8,2468.5,0.431]
[1729929036611,0.40548,2468.8,2468.6,0.4348]
[1729929037415,1.27247,2468.9,2468.6,0.4348]
[1729929038209,2.84866041,2468.8,2468.5,0.431]
[1729929038513,0.40552,2468.5,2468.3,3.2078]
[1729929039106,3.27146041,2468.7,2468.3,3.2078]
[1729929039107,0.84514,2468.4,2468.3,3.2078]
[1729929039403,1.25384,2468.4,2468.1,0.4396]
[1729929041610,0.8483,2468.4,2468.1,0.4396]
[1729929041906,0.40556,2468.3,2468.1,0.4396]
[1729929042605,1.25385,2468.4,2468.1,0.4396]
[1729929044706,0.8483,2468.4,2468.1,0.4396]
[1729929044912,0.40556,2468.3,2468.1,0.4396]
[1729929045299,1.25385,2468.4,2468.1,0.4396]
[1729929045504,0.8483,2468.4,2468.1,0.4396]
[1729929045712,0.40557,2468.3,2468.1,0.4396]
[1729929047111,0.8483,2468.4,2468.1,0.4396]
[1729929047420,1.25385,2468.4,2468.1,0.4396]
[1729929054516,0.8483,2468.4,2468.1,0.4396]
[1729929054717,0.40556,2468.3,2468.1,0.4396]
[1729929055019,3.69696041,2468.4,2468.1,0.4396]
[1729929055315,2.84866041,2468.2,2467.7,3.2078]
[1729929055522,0.40561,2468.0,2467.7,4.5385]
[1729929056427,2.84866041,2468.2,2467.7,4.5385]
[1729929056917,0.40563,2467.9,2467.7,4.5385]
[1729929057124,0.40564,2467.9,2467.7,4.5385]
[1729929057320,0.82804,2467.8,2467.7,3.2078]
[1729929057819,0.4224,2467.8,2467.7,3.2078]
[1729929059525,0.82804,2467.8,2467.7,3.2078]
[1729929059713,0.4224,2467.8,2467.7,3.2078]
[1729929060317,0.40562,2468.0,2467.7,3.2078]
[1729929060717,0.862,2468.1,2467.8,0.81614]
[1729929061024,0.862,2468.1,2467.9,0.4462]
[1729929061218,1.26759,2468.1,2468.0,0.4191]
[1729929061724,0.8491,2468.2,2468.0,0.4191]
[1729929061725,1.25468,2468.2,2468.0,0.4191]
[1729929062120,1.25468,2468.2,2468.1,0.4105]
[1729929063030,0.8491,2468.2,2468.1,0.4105]
[1729929063629,0.4415,2468.2,2468.1,0.4105]
[1729929063831,0.84707,2468.2,2468.1,0.4105]
[1729929065725,0.4415,2468.2,2468.1,0.4105]
[1729929066929,0.84707,2468.2,2468.1,0.4105]
[1729929069531,3.69573041,2468.2,2468.1,0.4105]
[1729929070323,2.16211971,2468.2,2468.1,0.4105]
[1729929072328,3.47716942,2468.2,2468.1,0.4105]
[1729929072735,2.16211971,2468.2,2468.1,0.4105]
[1729929076833,0.40561,2468.0,2467.9,0.4462]
[1729929077032,1.72065971,2468.0,2467.9,0.4462]
[1729929077925,0.40563,2467.9,2467.5,0.4228]
[1729929078131,1.31504971,2467.7,2467.6,0.8376]
[1729929082434,1.31504971,2467.8,2467.6,6.61111971]
[1729929082632,1.31504971,2467.8,2467.6,2.55831971]
[1729929084628,1.31504971,2467.8,2467.6,2.15264971]
[1729929085035,1.31504971,2467.8,2467.6,2.55831971]
[1729929086736,1.31504971,2467.8,2467.6,2.15264971]
[1729929087439,1.31504971,2467.8,2467.6,2.55830971]
[1729929087838,1.31504971,2467.8,2467.6,2.15264971]
[1729929088035,1.31504971,2467.8,2467.6,2.55831971]
[1729929088243,1.31504971,2467.9,2467.7,4.52284971]
[1729929088437,1.31504971,2467.9,2467.7,4.92849971]
[1729929089545,1.31504971,2467.9,2467.7,3.61345]
[1729929090345,1.31504971,2467.9,2467.7,3.2078]
[1729929090842,1.31504971,2467.9,2467.7,0.40566]
[1729929091046,1.31504971,2467.9,2467.8,3.2078]
[1729929091850,1.31504971,2467.9,2467.7,0.40566]
[1729929092141,0.40561,2468.0,2467.8,3.2078]
[1729929092339,0.40561,2468.0,2467.9,0.4098]
[1729929092743,0.82799,2468.1,2467.9,0.4098]
[1729929092945,0.4224,2468.1,2468.0,0.4352]
[1729929093744,2.14303971,2468.1,2468.0,0.4352]